[Event "GER-chT Youth Countries 2020"]
[Site "Berlin"]
[Date "2020.10.02"]
[Round "5"]
[White "Jacoby, Angelina"]
[Black "Mueller, Sophie Charlotte"]
[Result "1-0"]
[ECO "A15"]
[WhiteElo "1630"]
[BlackElo "1459"]
[Annotator "NA"]
[PlyCount "103"]
[EventDate "2020.09.30"]
[EventType "team-tourn"]
[EventRounds "7"]
[EventCountry "GER"]
[SourceTitle "playchess.com"]
[Source "ChessBase"]
[SourceQuality "1"]
[TimeControl "30/5400+30:0"]

1. c4 {[%emt 0:00:00]} Nf6 {[%emt 0:00:14]} 2. g3 {[%emt 0:00:00]} d6 {[%emt 0:00:38]} 3. Bg2 {[%emt 0:00:06]} g6 {[%emt 0:00:20]} 4. b3 {[%emt 0:02:04]} Bg7 {[%emt 0:00:41]} 5. Bb2 {[%emt 0:00:07]} O-O {[%emt 0:00:27]} 6. Nc3 {[%emt 0:00:14]} c6 {[%emt 0:02:05]} 7. Rb1 {[%emt 0:04:30]} e5 {[%emt 0:02:32]} 8. e4 {[%emt 0:01:40]} Nbd7 {[%emt 0:01:24]} 9. Nge2 {[%emt 0:00:42]} Nc5 {[%emt 0:04:28]} 10. d3 {[%emt 0:02:27]} Ne8 {[%emt 0:04:20]} 11. O-O {[%emt 0:02:16]} f5 {[%emt 0:03:11]} 12. f4 {[%emt 0:02:57]} Nf6 {[%emt 0:06:53]} 13. h3 {[%emt 0:07:59]} Be6 {[%emt 0:06:45]} 14. Ba3 {[%emt 0:04:12]} Qb6 {[%emt 0:10:00]} 15. Kh2 {[%emt 0:01:51]} Rfd8 {[%emt 0:05:39]} 16. b4 {[%emt 0:10:52]} Na6 {[%emt 0:01:03]} 17. Na4 {[%emt 0:09:06]} Qc7 {[%emt 0:00:51]} 18. b5 {[%emt 0:04:02]} Nb8 {[%emt 0:07:03]} 19. Nac3 {[%emt 0:19:11]} d5 {[%emt 0:01:48]} 20. exd5 {[%emt 0:06:40]} cxd5 {[%emt 0:00:05]} 21. cxd5 {[%emt 0:00:33]} Nxd5 {[%emt 0:00:09]} 22. Nxd5 {[%emt 0:00:48]} Bxd5 {[%emt 0:00:05]} 23. Bxd5+ {[%emt 0:00:43]} Rxd5 {[%emt 0:00:02]} 24. Rc1 {[%emt 0:00:56]} Qd7 {[%emt 0:01:20]} 25. Qb3 {[%emt 0:01:15]} Kh8 {[%emt 0:01:21]} 26. Rc8+ {[%emt 0:01:54]} Qxc8 {[%emt 0:00:50]} 27. Qxd5 {[%emt 0:00:05]} exf4 {[%emt 0:06:43]} 28. Rc1 {[%emt 0:00:53]} fxg3+ {[%emt 0:00:56]} 29. Nxg3 {[%emt 0:00:28]} Qd7 {[%emt 0:01:04]} 30. Qc4 {[%emt 0:01:15]} Be5 {[%emt 0:02:47]} 31. Qc8+ {[%emt 1:33:14]} Qxc8 {[%emt 1:30:04]} 32. Rxc8+ {[%emt 0:00:10]} Kg7 {[%emt 0:00:02]} 33. d4 {[%emt 0:03:18]} Bf4 {[%emt 0:02:37]} 34. Kg2 {[%emt 0:00:18]} a6 {[%emt 0:01:32]} 35. Ne2 {[%emt 0:00:53]} axb5 {[%emt 0:06:27]} 36. Bf8+ {[%emt 0:00:15]} Kf7 {[%emt 0:00:30]} 37. Nxf4 {[%emt 0:03:46]} Rxa2+ {[%emt 0:00:27]} 38. Kf3 {[%emt 0:02:34]} Nc6 {[%emt 0:03:32]} 39. Bc5 {[%emt 0:00:57]} g5 {[%emt 0:12:12]} 40. Rc7+ {[%emt 0:01:18]} Ke8 {[%emt 0:05:43]} 41. Ne6 {[%emt 0:00:34]} g4+ {[%emt 0:00:00]} 42. hxg4 {[%emt 0:00:00]} fxg4+ {[%emt 0:00:00]} 43. Kxg4 {[%emt 0:00:00]} Rg2+ {[%emt 0:00:00]} 44. Kh3 {[%emt 0:00:00]} Rg6 {[%emt 0:00:00]} 45. d5 {[%emt 0:00:00]} Rh6+ {[%emt 0:00:00]} 46. Kg3 {[%emt 0:00:00]} Rg6+ {[%emt 0:00:00]} 47. Kh4 {[%emt 0:00:00]} Rh6+ {[%emt 0:00:00]} 48. Kg5 {[%emt 0:00:00]} Rg6+ {[%emt 0:00:00]} 49. Kf5 {[%emt 0:00:00]} Nd4+ {[%emt 0:00:00]} 50. Bxd4 {[%emt 0:00:00]} b4 {[%emt 0:00:00]} 51. Bc5 {[%emt 0:00:00]} b3 {[%emt 0:00:00]} 52. Re7# {[%emt 0:00:00]} 1-0

[Event "GER-chT Youth Countries 2020"]
[Site "Berlin"]
[Date "2020.10.02"]
[Round "5"]
[White "Wilmink, Anna"]
[Black "Schwenke, Mia"]
[Result "1/2-1/2"]
[ECO "C45"]
[WhiteElo "1608"]
[BlackElo "1265"]
[Annotator "NA"]
[PlyCount "76"]
[EventDate "2020.09.30"]
[EventType "team-tourn"]
[EventRounds "7"]
[EventCountry "GER"]
[SourceTitle "playchess.com"]
[Source "ChessBase"]
[SourceQuality "1"]
[TimeControl "30/5400+30:0"]

1. e4 {[%emt 0:00:00]} e5 {[%emt 0:00:00]} 2. Nf3 {[%emt 0:00:00]} Nc6 {[%emt 0:00:00]} 3. d4 {[%emt 0:00:00]} exd4 {[%emt 0:00:01]} 4. Nxd4 {[%emt 0:00:00]} Bc5 {[%emt 0:00:17]} 5. Be3 {[%emt 0:00:03]} Qf6 {[%emt 0:00:46]} 6. c3 {[%emt 0:00:13]} Nge7 {[%emt 0:00:51]} 7. Bc4 {[%emt 0:00:15]} Qg6 {[%emt 0:01:12]} 8. Qf3 {[%emt 0:00:29]} O-O {[%emt 0:01:45]} 9. Nd2 {[%emt 0:02:16]} d6 {[%emt 0:02:30]} 10. h3 {[%emt 0:02:09]} Ne5 {[%emt 0:01:48]} 11. Qg3 {[%emt 0:02:01]} Qxg3 {[%emt 0:05:25]} 12. fxg3 {[%emt 0:00:26]} Nxc4 {[%emt 0:08:33]} 13. Nxc4 {[%emt 0:00:18]} d5 {[%emt 0:06:36]} 14. Nd2 {[%emt 0:06:00]} Bxd4 {[%emt 0:06:18]} 15. Bxd4 {[%emt 0:00:50]} dxe4 {[%emt 0:01:05]} 16. Nxe4 {[%emt 0:00:33]} Nf5 {[%emt 0:02:01]} 17. O-O {[%emt 0:04:43]} Nxd4 {[%emt 0:02:37]} 18. cxd4 {[%emt 0:00:54]} Re8 {[%emt 0:03:33]} 19. Ng5 {[%emt 0:03:08]} f6 {[%emt 0:02:48]} 20. Nf3 {[%emt 0:00:16]} Be6 {[%emt 0:05:20]} 21. Rfe1 {[%emt 0:02:04]} Bd5 {[%emt 0:01:50]} 22. a3 {[%emt 0:02:04]} Kf7 {[%emt 0:02:26]} 23. Kf2 {[%emt 0:01:23]} Rad8 {[%emt 0:05:41]} 24. Rac1 {[%emt 0:01:28]} c6 {[%emt 0:02:16]} 25. Rcd1 {[%emt 0:01:23]} Bxf3 {[%emt 0:03:30]} 26. gxf3 {[%emt 0:01:18]} Rxe1 {[%emt 0:00:51]} 27. Kxe1 {[%emt 0:00:15]} Rd5 {[%emt 0:01:39]} 28. Ke2 {[%emt 0:01:05]} Ke6 {[%emt 0:05:56]} 29. Kd3 {[%emt 0:04:10]} c5 {[%emt 0:05:26]} 30. Kc3 {[%emt 0:01:36]} cxd4+ {[%emt 0:01:55]} 31. Rxd4 {[%emt 1:30:23]} Rxd4 {[%emt 1:33:09]} 32. Kxd4 {[%emt 0:00:11]} Kd6 {[%emt 0:01:18]} 33. a4 {[%emt 0:02:50]} a5 {[%emt 0:03:44]} 34. f4 {[%emt 0:01:56]} f5 {[%emt 0:03:11]} 35. g4 {[%emt 0:05:20]} g6 {[%emt 0:03:16]} 36. g5 {[%emt 0:03:56]} b6 {[%emt 0:00:39]} 37. h4 {[%emt 0:08:32]} Ke6 {[%emt 0:01:09]} 38. Kc4 {[%emt 0:00:38]} Kd6 {[%emt 0:00:15]} 1/2-1/2

[Event "GER-chT Youth Countries 2020"]
[Site "Berlin"]
[Date "2020.10.02"]
[Round "5"]
[White "Goepfert, Christian"]
[Black "Aumueller, Naum"]
[Result "1-0"]
[ECO "C54"]
[WhiteElo "1603"]
[BlackElo "1690"]
[Annotator "NA"]
[PlyCount "59"]
[EventDate "2020.09.30"]
[EventType "team-tourn"]
[EventRounds "7"]
[EventCountry "GER"]
[SourceTitle "playchess.com"]
[Source "ChessBase"]
[SourceQuality "1"]
[TimeControl "30/5400+30:0"]

1. e4 {[%emt 0:00:00]} e5 {[%emt 0:00:00]} 2. Nf3 {[%emt 0:00:00]} Nc6 {[%emt 0:00:00]} 3. Bc4 {[%emt 0:00:00]} Bc5 {[%emt 0:00:00]} 4. c3 {[%emt 0:00:02]} Nf6 {[%emt 0:00:00]} 5. d3 {[%emt 0:00:06]} d6 {[%emt 0:00:33]} 6. O-O {[%emt 0:00:18]} Bg4 {[%emt 0:03:08]} 7. h3 {[%emt 0:00:17]} Bh5 {[%emt 0:01:55]} 8. Re1 {[%emt 0:02:28]} h6 {[%emt 0:04:20]} 9. Nbd2 {[%emt 0:00:56]} g5 {[%emt 0:02:31]} 10. Nf1 {[%emt 0:04:16]} Rg8 {[%emt 0:08:20]} 11. Ng3 {[%emt 0:12:29]} g4 {[%emt 0:13:48]} 12. Nxh5 {[%emt 0:01:36]} Nxh5 {[%emt 0:07:33]} 13. hxg4 {[%emt 0:01:00]} Rxg4 {[%emt 0:02:18]} 14. d4 Bb6 {[%emt 0:03:51]} 15. Nh2 {[%emt 0:07:38]} Rh4 {[%emt 0:03:58]} 16. g3 {[%emt 0:02:21]} exd4 {[%emt 0:00:59]} 17. gxh4 {[%emt 0:01:43]} Qxh4 {[%emt 0:00:15]} 18. Qg4 {[%emt 0:00:15]} Qxg4+ {[%emt 0:00:59]} 19. Nxg4 {[%emt 0:00:10]} Ke7 {[%emt 0:00:52]} 20. Nxh6 {[%emt 0:03:11]} Ne5 {[%emt 0:01:14]} 21. Nf5+ {[%emt 0:00:33]} Kd7 {[%emt 0:00:41]} 22. Be2 {[%emt 0:00:19]} Nf6 {[%emt 0:00:21]} 23. cxd4 {[%emt 0:04:38]} Rg8+ {[%emt 0:01:04]} 24. Kf1 Neg4 {[%emt 0:01:06]} 25. f3 {[%emt 0:03:51]} Nh2+ {[%emt 0:01:00]} 26. Kf2 {[%emt 0:00:22]} c5 {[%emt 0:01:05]} 27. Be3 {[%emt 0:01:04]} cxd4 {[%emt 0:02:19]} 28. Bxd4 {[%emt 0:00:15]} Bd8 {[%emt 0:00:48]} 29. Rg1 {[%emt 0:00:18]} Re8 {[%emt 0:01:50]} 30. Bb5+ 1-0

[Event "GER-chT Youth Countries 2020"]
[Site "Berlin"]
[Date "2020.10.02"]
[Round "5"]
[White "Schulz, Hannah"]
[Black "Schwartz, Oliver"]
[Result "0-1"]
[ECO "B34"]
[WhiteElo "1589"]
[BlackElo "1794"]
[Annotator "NA"]
[PlyCount "51"]
[EventDate "2020.09.30"]
[EventType "team-tourn"]
[EventRounds "7"]
[EventCountry "GER"]
[SourceTitle "playchess.com"]
[Source "ChessBase"]
[SourceQuality "1"]
[TimeControl "30/5400+30:0"]

1. e4 {[%emt 0:00:00]} c5 {[%emt 0:00:00]} 2. Nf3 {[%emt 0:00:00]} Nc6 {[%emt 0:00:00]} 3. d4 {[%emt 0:00:00]} cxd4 {[%emt 0:00:00]} 4. Nxd4 {[%emt 0:00:00]} Nf6 {[%emt 0:00:05]} 5. Nc3 {[%emt 0:00:04]} e5 {[%emt 0:00:12]} 6. Ndb5 {[%emt 0:02:17]} d6 {[%emt 0:00:20]} 7. Bd3 {[%emt 0:00:41]} a6 {[%emt 0:03:00]} 8. Na3 {[%emt 0:00:27]} d5 {[%emt 0:04:23]} 9. Nxd5 {[%emt 0:10:37]} Nxd5 {[%emt 0:00:18]} 10. exd5 {[%emt 0:00:05]} Qxd5 {[%emt 0:00:13]} 11. O-O {[%emt 0:01:31]} Bxa3 {[%emt 0:04:50]} 12. bxa3 {[%emt 0:01:06]} Be6 {[%emt 0:00:39]} 13. c4 {[%emt 0:01:15]} Qd7 {[%emt 0:01:41]} 14. Bb2 {[%emt 0:11:45]} Rd8 {[%emt 0:03:59]} 15. Be2 {[%emt 0:02:42]} O-O {[%emt 0:01:41]} 16. Bc3 {[%emt 0:02:56]} Nd4 {[%emt 0:05:06]} 17. Bb4 {[%emt 0:02:09]} Rfe8 {[%emt 0:00:49]} 18. Rc1 {[%emt 0:02:09]} Rc8 {[%emt 0:08:55]} 19. Qd2 {[%emt 0:04:14]} Bg4 {[%emt 0:11:41]} 20. f3 {[%emt 0:03:23]} Bf5 {[%emt 0:00:25]} 21. Rfd1 {[%emt 0:01:37]} Rc6 {[%emt 0:05:48]} 22. Bd3 {[%emt 0:06:20]} Rg6 {[%emt 0:03:53]} 23. Rf1 {[%emt 0:05:57]} e4 {[%emt 0:16:57]} 24. fxe4 {[%emt 0:02:43]} Bh3 {[%emt 0:01:10]} 25. Rf2 {[%emt 0:02:10]} Bxg2 {[%emt 0:00:21]} 26. e5 {[%emt 0:08:24]} 0-1

[Event "GER-chT Youth Countries 2020"]
[Site "Berlin"]
[Date "2020.10.02"]
[Round "5"]
[White "Voigt, Anastasia"]
[Black "Brunner, Sophia"]
[Result "1-0"]
[ECO "C06"]
[WhiteElo "1562"]
[BlackElo "1850"]
[Annotator "NA"]
[PlyCount "151"]
[EventDate "2020.09.30"]
[EventType "team-tourn"]
[EventRounds "7"]
[EventCountry "GER"]
[SourceTitle "playchess.com"]
[Source "ChessBase"]
[SourceQuality "1"]
[TimeControl "30/5400+30:0"]

1. e4 {[%emt 0:00:00]} e6 {[%emt 0:00:00]} 2. d4 {[%emt 0:00:00]} d5 {[%emt 0:00:00]} 3. Nd2 {[%emt 0:00:00]} Nf6 {[%emt 0:00:00]} 4. e5 {[%emt 0:00:00]} Nfd7 {[%emt 0:00:00]} 5. Bd3 {[%emt 0:00:00]} c5 {[%emt 0:00:06]} 6. c3 {[%emt 0:00:03]} Nc6 {[%emt 0:00:15]} 7. Ne2 {[%emt 0:00:14]} cxd4 {[%emt 0:00:23]} 8. cxd4 {[%emt 0:00:12]} f6 {[%emt 0:00:06]} 9. exf6 {[%emt 0:00:17]} Nxf6 {[%emt 0:00:05]} 10. Nf3 {[%emt 0:00:14]} Qc7 {[%emt 0:00:08]} 11. Bf4 {[%emt 0:00:21]} Bb4+ {[%emt 0:00:07]} 12. Bd2 {[%emt 0:00:47]} Bd6 {[%emt 0:00:18]} 13. O-O {[%emt 0:03:34]} O-O {[%emt 0:00:23]} 14. Ng3 {[%emt 0:02:28]} Bd7 {[%emt 0:02:25]} 15. Re1 {[%emt 0:01:07]} Rae8 {[%emt 0:01:06]} 16. Rc1 {[%emt 0:02:40]} Qb8 {[%emt 0:18:45]} 17. a3 {[%emt 0:27:55]} Kh8 {[%emt 0:03:42]} 18. b4 {[%emt 0:12:44]} a6 19. Bc3 {[%emt 0:03:03]} e5 {[%emt 0:21:27]} 20. dxe5 Nxe5 {[%emt 0:01:23]} 21. Nxe5 {[%emt 0:02:36]} Bxe5 {[%emt 0:00:00]} 22. Bxe5 {[%emt 0:04:06]} Rxe5 23. Rc3 {[%emt 0:05:00]} Ng4 {[%emt 0:14:37]} 24. Rf1 {[%emt 0:06:38]} Qd6 {[%emt 0:14:18]} 25. Be2 {[%emt 0:05:09]} Nf6 {[%emt 0:05:46]} 26. Qd4 {[%emt 0:04:41]} Rfe8 27. Re3 {[%emt 0:00:17]} Rxe3 {[%emt 0:07:36]} 28. fxe3 Kg8 {[%emt 0:08:01]} 29. Bf3 {[%emt 0:01:55]} Qe6 {[%emt 0:01:24]} 30. Re1 {[%emt 0:03:54]} Bc6 {[%emt 0:01:13]} 31. Kf2 Rf8 32. Kg1 {[%emt 1:36:18]} Re8 {[%emt 1:31:12]} 33. Nf1 Bb5 {[%emt 0:00:53]} 34. Nd2 {[%emt 0:02:51]} Qe5 {[%emt 0:00:00]} 35. Qxe5 {[%emt 0:02:07]} Rxe5 {[%emt 0:01:01]} 36. Nb3 {[%emt 0:00:57]} Kf7 37. Nd4 {[%emt 0:01:04]} Bc4 {[%emt 0:00:51]} 38. Kf2 {[%emt 0:00:41]} g5 {[%emt 0:00:17]} 39. h3 {[%emt 0:01:00]} h5 {[%emt 0:00:11]} 40. g4 {[%emt 0:00:00]} h4 41. Rd1 {[%emt 0:00:00]} Ne8 {[%emt 0:00:00]} 42. Ne2 Nd6 {[%emt 0:00:00]} 43. Nc3 {[%emt 0:00:00]} Ke6 44. Rd4 Nb5 {[%emt 0:00:00]} 45. Nxb5 {[%emt 0:00:00]} Bxb5 {[%emt 0:00:00]} 46. Rd1 Bc4 {[%emt 0:00:00]} 47. Be2 {[%emt 0:00:00]} Bxe2 {[%emt 0:00:00]} 48. Kxe2 {[%emt 0:00:00]} Kd6 {[%emt 0:00:00]} 49. Kd3 b5 {[%emt 0:01:48]} 50. Rf1 {[%emt 0:00:00]} Re6 51. Rf5 {[%emt 0:00:00]} Re5 {[%emt 0:00:36]} 52. Rf8 {[%emt 0:01:02]} Re6 {[%emt 0:01:39]} 53. Ra8 {[%emt 0:00:56]} Kc7 {[%emt 0:00:58]} 54. Rg8 {[%emt 0:05:12]} Re5 {[%emt 0:00:19]} 55. Rg6 Kb7 {[%emt 0:00:44]} 56. Rf6 {[%emt 0:00:33]} Re7 {[%emt 0:02:55]} 57. Rf5 {[%emt 0:00:17]} Rg7 {[%emt 0:00:41]} 58. Rxd5 {[%emt 0:00:10]} Kc6 {[%emt 0:00:01]} 59. Kd4 {[%emt 0:00:40]} Rg8 {[%emt 0:00:28]} 60. e4 {[%emt 0:00:46]} Rg7 {[%emt 0:00:32]} 61. e5 {[%emt 1:30:24]} Rg6 {[%emt 1:30:35]} 62. Rc5+ {[%emt 0:00:36]} Kd7 {[%emt 0:00:31]} 63. Ke4 {[%emt 0:01:01]} Rg8 {[%emt 0:00:51]} 64. Kf5 {[%emt 0:00:37]} Rg7 {[%emt 0:00:44]} 65. Kf6 {[%emt 0:00:38]} Rg8 {[%emt 0:00:02]} 66. e6+ {[%emt 0:00:45]} Kd6 {[%emt 0:00:08]} 67. Kf7 {[%emt 0:00:34]} Ra8 68. Rxg5 {[%emt 0:01:21]} Ra7+ {[%emt 0:00:41]} 69. Kf6 {[%emt 0:00:08]} Ra8 {[%emt 0:00:21]} 70. Rg7 {[%emt 0:00:28]} Rc8 {[%emt 0:00:47]} 71. Rd7+ {[%emt 0:01:06]} Kc6 {[%emt 0:00:01]} 72. g5 {[%emt 0:00:20]} Rf8+ {[%emt 0:00:11]} 73. Rf7 {[%emt 0:00:14]} Rd8 74. e7 {[%emt 0:00:55]} Rd6+ {[%emt 0:00:15]} 75. Kg7 {[%emt 0:00:20]} Kd7 {[%emt 0:00:14]} 76. Kf8 {[%emt 0:00:25]} 1-0

[Event "GER-chT Youth Countries 2020"]
[Site "Berlin"]
[Date "2020.10.02"]
[Round "5"]
[White "Kadach, Maria"]
[Black "Kiefhaber, Tobias"]
[Result "1/2-1/2"]
[ECO "A45"]
[WhiteElo "1539"]
[BlackElo "1542"]
[Annotator "NA"]
[PlyCount "78"]
[EventDate "2020.09.30"]
[EventType "team-tourn"]
[EventRounds "7"]
[EventCountry "GER"]
[SourceTitle "playchess.com"]
[Source "ChessBase"]
[SourceQuality "1"]
[TimeControl "30/5400+30:0"]

1. d4 {[%emt 0:00:00]} Nf6 {[%emt 0:00:00]} 2. Bf4 {[%emt 0:00:00]} d6 {[%emt 0:00:00]} 3. e3 {[%emt 0:00:08]} g6 {[%emt 0:00:19]} 4. Nc3 {[%emt 0:00:19]} Bg7 {[%emt 0:00:38]} 5. Bd3 {[%emt 0:01:22]} Nbd7 {[%emt 0:01:14]} 6. Nf3 {[%emt 0:00:22]} O-O {[%emt 0:00:28]} 7. O-O {[%emt 0:02:56]} Re8 {[%emt 0:00:47]} 8. e4 {[%emt 0:03:42]} e5 {[%emt 0:03:04]} 9. dxe5 {[%emt 0:04:02]} Nxe5 {[%emt 0:00:32]} 10. Nxe5 {[%emt 0:00:20]} dxe5 {[%emt 0:00:09]} 11. Bg5 {[%emt 0:02:15]} h6 {[%emt 0:01:21]} 12. Be3 {[%emt 0:00:13]} Nh7 {[%emt 0:04:04]} 13. Qd2 {[%emt 0:07:42]} g5 {[%emt 0:01:44]} 14. Rad1 {[%emt 0:01:28]} c6 {[%emt 0:04:10]} 15. Bc4 {[%emt 0:07:08]} Qf6 {[%emt 0:08:29]} 16. Ne2 {[%emt 0:06:00]} h5 {[%emt 0:04:42]} 17. Qd6 {[%emt 0:05:36]} Be6 {[%emt 0:01:58]} 18. Bxe6 {[%emt 0:00:34]} Rxe6 {[%emt 0:00:03]} 19. Qb4 {[%emt 0:02:46]} b5 {[%emt 0:03:09]} 20. Ng3 {[%emt 0:02:09]} h4 {[%emt 0:04:25]} 21. Nf5 {[%emt 0:00:31]} g4 {[%emt 0:04:41]} 22. Qd2 {[%emt 0:05:32]} Kh8 {[%emt 0:04:53]} 23. f3 {[%emt 0:07:36]} Qg6 {[%emt 0:04:50]} 24. Nxh4 {[%emt 0:05:56]} Qh5 {[%emt 0:01:06]} 25. Nf5 {[%emt 0:03:19]} Rg8 {[%emt 0:01:15]} 26. fxg4 {[%emt 0:05:36]} Qxg4 {[%emt 0:00:30]} 27. Nd6 {[%emt 0:04:58]} Rxd6 {[%emt 0:02:08]} 28. Qxd6 {[%emt 0:00:23]} Bh6 {[%emt 0:00:18]} 29. Qxe5+ {[%emt 0:02:05]} f6 {[%emt 0:00:47]} 30. Qg3 {[%emt 0:02:56]} Bxe3+ {[%emt 0:00:52]} 31. Kh1 {[%emt 1:30:18]} Qxg3 {[%emt 1:30:43]} 32. hxg3 {[%emt 0:00:03]} Rg6 {[%emt 0:02:02]} 33. Rd8+ {[%emt 0:02:27]} Kg7 {[%emt 0:00:33]} 34. Rd7+ {[%emt 0:00:11]} Kg8 {[%emt 0:00:18]} 35. Rf4 {[%emt 0:05:37]} Bxf4 {[%emt 0:00:31]} 36. gxf4 {[%emt 0:00:02]} Rg4 {[%emt 0:00:36]} 37. Rxa7 {[%emt 0:06:16]} Rxf4 {[%emt 0:00:29]} 38. Rc7 {[%emt 0:00:12]} Rxe4 {[%emt 0:00:54]} 39. Rxc6 {[%emt 0:00:02]} Kf7 {[%emt 0:01:02]} 1/2-1/2

[Event "GER-chT Youth Countries 2020"]
[Site "Berlin"]
[Date "2020.10.02"]
[Round "5"]
[White "Uhlmann, Tim"]
[Black "Moldovan, Tatiana"]
[Result "1-0"]
[ECO "B28"]
[WhiteElo "1523"]
[BlackElo "1480"]
[Annotator "NA"]
[PlyCount "109"]
[EventDate "2020.09.30"]
[EventType "team-tourn"]
[EventRounds "7"]
[EventCountry "GER"]
[SourceTitle "playchess.com"]
[Source "ChessBase"]
[SourceQuality "1"]
[TimeControl "30/5400+30:0"]

1. e4 {[%emt 0:00:00]} c5 {[%emt 0:04:58]} 2. Nf3 {[%emt 0:00:00]} a6 {[%emt 0:01:44]} 3. c3 {[%emt 0:00:03]} e6 {[%emt 0:00:33]} 4. d4 {[%emt 0:00:08]} d5 {[%emt 0:02:00]} 5. e5 {[%emt 0:00:06]} Bd7 {[%emt 0:05:20]} 6. Bd3 {[%emt 0:00:07]} cxd4 {[%emt 0:01:09]} 7. cxd4 {[%emt 0:00:13]} Bb5 {[%emt 0:00:57]} 8. Bc2 {[%emt 0:00:17]} f6 {[%emt 0:00:47]} 9. Nc3 {[%emt 0:00:19]} fxe5 {[%emt 0:01:26]} 10. Nxe5 {[%emt 0:00:09]} Bd6 {[%emt 0:00:29]} 11. Qh5+ {[%emt 0:00:19]} g6 {[%emt 0:02:31]} 12. Nxg6 {[%emt 0:00:43]} hxg6 {[%emt 0:00:22]} 13. Qxh8 {[%emt 0:01:05]} Kd7 {[%emt 0:00:19]} 14. Qg7+ {[%emt 0:00:55]} Ne7 {[%emt 0:00:36]} 15. Nxb5 {[%emt 0:00:17]} axb5 {[%emt 0:02:28]} 16. O-O {[%emt 0:00:15]} Qc7 {[%emt 0:00:38]} 17. Bxg6 {[%emt 0:00:56]} Bxh2+ {[%emt 0:00:26]} 18. Kh1 {[%emt 0:00:10]} Bd6 {[%emt 0:00:05]} 19. Bf7 {[%emt 0:00:50]} Nbc6 {[%emt 0:00:19]} 20. Qf6 {[%emt 0:01:15]} Qd8 {[%emt 0:00:54]} 21. Bxe6+ {[%emt 0:01:50]} Kc7 {[%emt 0:00:23]} 22. g3 {[%emt 0:01:25]} Qh8+ {[%emt 0:05:46]} 23. Qxh8 {[%emt 0:00:11]} Rxh8+ {[%emt 0:00:35]} 24. Kg2 {[%emt 0:00:23]} Nxd4 {[%emt 0:00:05]} 25. Bg4 {[%emt 0:00:19]} Ndc6 {[%emt 0:00:33]} 26. f4 {[%emt 0:01:04]} Rg8 {[%emt 0:00:57]} 27. Bh3 {[%emt 0:02:03]} Nd4 {[%emt 0:02:46]} 28. Bd2 {[%emt 0:06:36]} Ndf5 {[%emt 0:00:31]} 29. g4 {[%emt 0:09:22]} Nd4 {[%emt 0:00:58]} 30. Bc3 {[%emt 0:03:52]} Ndc6 {[%emt 0:00:27]} 31. f5 {[%emt 1:31:20]} d4 {[%emt 1:31:02]} 32. Bd2 {[%emt 0:00:16]} Nd5 {[%emt 0:05:52]} 33. Rae1 {[%emt 0:03:33]} Ne5 {[%emt 0:02:33]} 34. g5 {[%emt 0:02:37]} Nd3 {[%emt 0:00:53]} 35. Re4 {[%emt 0:00:21]} Nxb2 {[%emt 0:01:58]} 36. f6 {[%emt 0:00:50]} Nc4 {[%emt 0:03:54]} 37. f7 {[%emt 0:00:37]} Rf8 {[%emt 0:00:30]} 38. Ba5+ {[%emt 0:10:13]} Nxa5 {[%emt 0:01:28]} 39. g6 {[%emt 0:00:09]} Ne3+ {[%emt 0:03:49]} 40. Rxe3 {[%emt 0:00:11]} dxe3 {[%emt 0:01:02]} 41. g7 {[%emt 0:00:06]} e2 {[%emt 0:00:16]} 42. Re1 {[%emt 0:01:25]} Rxf7 {[%emt 0:00:42]} 43. g8=Q {[%emt 0:00:23]} Re7 {[%emt 0:00:06]} 44. Bg4 {[%emt 0:00:23]} Kb6 {[%emt 0:06:42]} 45. Rxe2 {[%emt 0:01:24]} Rxe2+ {[%emt 0:00:20]} 46. Bxe2 {[%emt 0:00:08]} Bc7 {[%emt 0:00:22]} 47. Qd5 {[%emt 0:00:37]} Ka7 48. Qxb5 {[%emt 0:00:30]} Ka8 {[%emt 0:05:29]} 49. Bf3 {[%emt 0:00:19]} Kb8 {[%emt 0:01:25]} 50. Kh3 {[%emt 0:00:43]} Ka8 {[%emt 0:07:32]} 51. Kg4 {[%emt 0:00:16]} Kb8 {[%emt 0:01:08]} 52. Kf5 {[%emt 0:00:19]} Ka8 {[%emt 0:00:21]} 53. Ke6 {[%emt 0:00:09]} Kb8 {[%emt 0:05:27]} 54. Kd7 {[%emt 0:00:32]} Nc6 {[%emt 0:01:47]} 55. Qc5 {[%emt 0:00:08]} 1-0

[Event "GER-chT Youth Countries 2020"]
[Site "Berlin"]
[Date "2020.10.02"]
[Round "5"]
[White "Koenig, Emmilie"]
[Black "Fuchs, Emily"]
[Result "0-1"]
[ECO "A46"]
[WhiteElo "1518"]
[BlackElo "1441"]
[Annotator "NA"]
[PlyCount "54"]
[EventDate "2020.09.30"]
[EventType "team-tourn"]
[EventRounds "7"]
[EventCountry "GER"]
[SourceTitle "playchess.com"]
[Source "ChessBase"]
[SourceQuality "1"]
[TimeControl "30/5400+30:0"]

1. d4 {[%emt 0:00:00]} Nf6 {[%emt 0:00:00]} 2. Nf3 {[%emt 0:00:00]} e6 {[%emt 0:00:00]} 3. Bf4 {[%emt 0:00:00]} d5 {[%emt 0:00:00]} 4. e3 {[%emt 0:00:09]} c5 {[%emt 0:00:09]} 5. c3 {[%emt 0:00:05]} Nc6 {[%emt 0:00:17]} 6. Nbd2 {[%emt 0:00:14]} Bd6 {[%emt 0:00:16]} 7. Bg3 {[%emt 0:01:02]} O-O {[%emt 0:01:50]} 8. Bd3 {[%emt 0:01:01]} Bxg3 {[%emt 0:00:19]} 9. hxg3 {[%emt 0:00:02]} Qe7 {[%emt 0:01:21]} 10. Ne5 {[%emt 0:00:51]} h6 {[%emt 0:02:43]} 11. Nxc6 {[%emt 0:00:38]} bxc6 {[%emt 0:00:14]} 12. Nf3 {[%emt 0:03:25]} Nd7 {[%emt 0:08:56]} 13. Qc2 {[%emt 0:08:48]} cxd4 {[%emt 0:01:38]} 14. exd4 {[%emt 0:03:00]} c5 {[%emt 0:01:29]} 15. O-O-O {[%emt 0:06:34]} a5 {[%emt 0:06:02]} 16. Qd2 {[%emt 0:04:04]} a4 {[%emt 0:09:14]} 17. a3 {[%emt 0:08:31]} Ba6 {[%emt 0:02:08]} 18. Rh3 {[%emt 0:09:14]} Bxd3 {[%emt 0:00:59]} 19. Qxd3 {[%emt 0:00:47]} Nf6 {[%emt 0:23:45]} 20. Nd2 {[%emt 0:10:55]} Rfb8 {[%emt 0:02:59]} 21. Nb1 {[%emt 0:06:30]} Ne4 {[%emt 0:05:15]} 22. Qe3 {[%emt 0:01:15]} Nd6 {[%emt 0:01:25]} 23. Nd2 {[%emt 0:07:07]} Qb7 {[%emt 0:01:18]} 24. Rdh1 {[%emt 0:02:23]} Qxb2+ {[%emt 0:00:31]} 25. Kd1 {[%emt 0:00:08]} Nf5 {[%emt 0:01:06]} 26. Qf4 {[%emt 0:01:39]} Qxc3 {[%emt 0:06:16]} 27. g4 {[%emt 0:02:39]} Qxd4 {[%emt 0:00:21]} 0-1